[Event "World Prestigious University 2019"]
[Site "Tianjin"]
[Date "2019.11.26"]
[Round "2.2"]
[White "Tarasov, Alexandr"]
[Black "Lei, Sean"]
[Result "1/2-1/2"]
[WhiteElo "2348"]
[BlackElo "1895"]
[PlyCount "96"]
[EventDate "2019.11.26"]
[EventType "team-tourn"]
[EventCountry "CHN"]
[TimeControl "1500+10"]
[WhiteClock "0:00:20"]
[BlackClock "0:00:12"]

1. d4 {[%emt 0:02:02]} Nf6 {[%emt 0:00:00]} 2. g3 {[%emt 0:00:04]} d6 {[%emt 0:00:00]} 3. Bg2 {[%emt 0:00:03]} Nbd7 {[%emt 0:00:00]} 4. e4 {[%emt 0:00:06]} e5 {[%emt 0:00:02]} 5. Ne2 {[%emt 0:00:04]} c6 {[%emt 0:00:32]} 6. O-O {[%emt 0:00:05]} Be7 {[%emt 0:00:03]} 7. c4 {[%emt 0:00:28]} O-O {[%emt 0:00:30]} 8. Nbc3 {[%emt 0:00:01]} b6 {[%emt 0:00:49]} 9. h3 {[%emt 0:00:05]} Qc7 {[%emt 0:00:39]} 10. f4 {[%emt 0:00:35]} Re8 {[%emt 0:01:04]} 11. g4 {[%emt 0:00:12]} exd4 {[%emt 0:00:08]} 12. Nxd4 {[%emt 0:00:03]} Nc5 {[%emt 0:01:04]} 13. e5 {[%emt 0:03:29]} dxe5 {[%emt 0:00:47]} 14. fxe5 {[%emt 0:00:06]} Nfd7 {[%emt 0:02:48]} 15. Nxc6 {[%emt 0:00:34]} Bb7 {[%emt 0:07:10]} 16. Nd5 {[%emt 0:02:25]} Qxc6 {[%emt 0:00:54]} 17. Nxe7+ {[%emt 0:00:05]} Rxe7 {[%emt 0:00:01]} 18. Bxc6 Bxc6 {[%emt 0:00:01]} 19. b4 {[%emt 0:00:26]} Ne4 {[%emt 0:00:19]} 20. Bb2 {[%emt 0:05:31]} Nf8 {[%emt 0:01:25]} 21. Qd4 {[%emt 0:04:32]} Rd7 {[%emt 0:00:50]} 22. Qe3 {[%emt 0:01:13]} Rad8 {[%emt 0:00:16]} 23. Rf4 {[%emt 0:01:22]} Ng5 {[%emt 0:01:58]} 24. h4 {[%emt 0:02:55]} Rd3 {[%emt 0:02:25]} 25. Qxd3 {[%emt 0:00:35]} Rxd3 {[%emt 0:00:02]} 26. hxg5 {[%emt 0:00:02]} Ne6 {[%emt 0:00:26]} 27. Rf2 {[%emt 0:00:40]} Nxg5 {[%emt 0:00:05]} 28. Re2 {[%emt 0:00:44]} Rg3+ {[%emt 0:01:23]} 29. Kf2 {[%emt 0:00:40]} Rxg4 {[%emt 0:01:34]} 30. Rd1 {[%emt 0:00:31]} h5 {[%emt 0:01:05]} 31. Rd4 {[%emt 0:00:13]} Rg2+ {[%emt 0:00:55]} 32. Kf1 {[%emt 0:00:11]} Rg3 {[%emt 0:00:38]} 33. c5 {[%emt 0:00:01]} Bb5 {[%emt 0:00:04]} 34. Bc1 {[%emt 0:00:09]} Bxe2+ {[%emt 0:00:06]} 35. Kxe2 {[%emt 0:00:01]} bxc5 {[%emt 0:00:10]} 36. Rd8+ {[%emt 0:00:06]} Kh7 {[%emt 0:00:02]} 37. bxc5 {[%emt 0:00:05]} Ne6 {[%emt 0:00:03]} 38. Rd7 {[%emt 0:00:12]} Rg2+ {[%emt 0:00:24]} 39. Kf3 {[%emt 0:00:13]} Rc2 {[%emt 0:00:20]} 40. Be3 {[%emt 0:00:03]} Rxa2 {[%emt 0:00:12]} 41. Rxf7 {[%emt 0:00:11]} Ra6 {[%emt 0:00:21]} 42. Re7 {[%emt 0:00:12]} h4 {[%emt 0:00:13]} 43. Kg4 {[%emt 0:00:11]} Rc6 {[%emt 0:00:03]} 44. Kxh4 {[%emt 0:00:12]} Nxc5 {[%emt 0:00:02]} 45. Rxa7 {[%emt 0:00:20]} Nd3 {[%emt 0:00:17]} 46. Re7 {[%emt 0:00:05]} Kg6 {[%emt 0:00:08]} 47. e6 {[%emt 0:00:32]} Nc5 {[%emt 0:00:21]} 48. Bxc5 {[%emt 0:00:13]} Rxc5 {[%emt 0:00:01]} 1/2-1/2

[Event "World Prestigious University 2019"]
[Site "Tianjin"]
[Date "2019.11.26"]
[Round "2.3"]
[White "Zhou, Qiyu"]
[Black "Bogachkova, Alena"]
[Result "1-0"]
[WhiteElo "2216"]
[BlackElo "2080"]
[PlyCount "104"]
[EventDate "2019.11.26"]
[EventType "team-tourn"]
[EventCountry "CHN"]
[TimeControl "1500+10"]
[WhiteClock "0:00:14"]
[BlackClock "0:00:57"]

1. e4 {[%emt 0:00:00]} c5 {[%emt 0:00:00]} 2. Nf3 {[%emt 0:00:00]} Nc6 {[%emt 0:00:00]} 3. d4 {[%emt 0:00:00]} cxd4 {[%emt 0:00:00]} 4. Nxd4 {[%emt 0:00:00]} g6 {[%emt 0:00:00]} 5. Be3 {[%emt 0:00:21]} Nf6 {[%emt 0:00:24]} 6. Nc3 {[%emt 0:00:04]} Bg7 {[%emt 0:00:04]} 7. Bc4 {[%emt 0:00:53]} O-O {[%emt 0:00:02]} 8. h3 {[%emt 0:00:14]} a6 {[%emt 0:02:33]} 9. a4 {[%emt 0:00:49]} d6 {[%emt 0:02:10]} 10. O-O {[%emt 0:00:09]} Na5 {[%emt 0:00:17]} 11. Ba2 {[%emt 0:00:25]} b6 {[%emt 0:01:19]} 12. b4 {[%emt 0:03:05]} Nb7 {[%emt 0:00:03]} 13. Rb1 {[%emt 0:01:55]} Qc7 {[%emt 0:02:25]} 14. Nd5 {[%emt 0:00:22]} Nxd5 {[%emt 0:00:09]} 15. exd5 {[%emt 0:00:42]} Bd7 {[%emt 0:02:07]} 16. c4 {[%emt 0:01:01]} a5 {[%emt 0:01:45]} 17. b5 {[%emt 0:01:48]} Bxd4 {[%emt 0:01:41]} 18. Qxd4 {[%emt 0:00:37]} Nc5 {[%emt 0:04:35]} 19. Bh6 {[%emt 0:00:34]} f6 {[%emt 0:04:02]} 20. Bxf8 {[%emt 0:00:09]} Rxf8 {[%emt 0:00:10]} 21. Bb3 {[%emt 0:00:27]} Bf5 {[%emt 0:00:42]} 22. Rb2 {[%emt 0:00:02]} h5 {[%emt 0:02:27]} 23. g4 {[%emt 0:00:59]} hxg4 {[%emt 0:00:02]} 24. hxg4 {[%emt 0:00:01]} Bd7 {[%emt 0:00:14]} 25. f3 {[%emt 0:01:17]} Kg7 {[%emt 0:00:50]} 26. Re1 {[%emt 0:00:49]} Bc8 {[%emt 0:00:44]} 27. Qe3 {[%emt 0:00:07]} e5 {[%emt 0:00:18]} 28. dxe6 {[%emt 0:01:21]} Bxe6 {[%emt 0:00:01]} 29. Rh2 {[%emt 0:00:10]} g5 {[%emt 0:00:09]} 30. Bc2 {[%emt 0:00:19]} Rh8 {[%emt 0:00:19]} 31. Ree2 {[%emt 0:00:42]} Rxh2 {[%emt 0:00:23]} 32. Rxh2 {[%emt 0:00:03]} Bg8 {[%emt 0:00:03]} 33. Qe8 {[%emt 0:07:17]} Qf7 {[%emt 0:00:13]} 34. Re2 {[%emt 0:00:04]} Qxe8 {[%emt 0:00:06]} 35. Rxe8 {[%emt 0:00:03]} Bxc4 {[%emt 0:00:05]} 36. Rb8 {[%emt 0:00:12]} Kf7 {[%emt 0:00:12]} 37. Rxb6 {[%emt 0:00:15]} Ke6 {[%emt 0:00:16]} 38. Rb8 {[%emt 0:00:10]} d5 {[%emt 0:00:11]} 39. Rc8 {[%emt 0:00:29]} Nb7 {[%emt 0:00:16]} 40. Kf2 {[%emt 0:00:29]} Ke5 {[%emt 0:00:05]} 41. Rc7 {[%emt 0:00:18]} Nd8 {[%emt 0:00:12]} 42. Ra7 {[%emt 0:00:13]} d4 {[%emt 0:00:06]} 43. Rxa5 {[%emt 0:00:30]} d3 {[%emt 0:00:03]} 44. Bd1 {[%emt 0:00:24]} Nb7 {[%emt 0:00:17]} 45. Ra7 {[%emt 0:00:13]} Nd6 {[%emt 0:00:15]} 46. Ke3 {[%emt 0:00:31]} Kd5 {[%emt 0:00:07]} 47. Rc7 {[%emt 0:00:11]} Ne8 {[%emt 0:00:08]} 48. Re7 {[%emt 0:00:18]} Nd6 {[%emt 0:00:04]} 49. f4 {[%emt 0:00:30]} gxf4+ {[%emt 0:00:06]} 50. Kxf4 {[%emt 0:00:01]} Kc5 {[%emt 0:00:15]} 51. Rd7 {[%emt 0:00:12]} Bd5 {[%emt 0:00:21]} 52. Rd8 {[%emt 0:00:58]} Bc4 {[%emt 0:00:13]} 1-0

[Event "World Prestigious University 2019"]
[Site "Tianjin"]
[Date "2019.11.26"]
[Round "2.4"]
[White "Green, Michael L"]
[Black "Weichao, Chu"]
[Result "0-1"]
[WhiteElo "2073"]
[BlackElo "2423"]
[PlyCount "138"]
[EventDate "2019.11.26"]
[EventType "team-tourn"]
[EventCountry "CHN"]
[TimeControl "1500+10"]
[WhiteClock "0:02:12"]
[BlackClock "0:01:30"]

1. Nf3 {[%emt 0:00:00]} Nf6 {[%emt 0:00:00]} 2. c4 {[%emt 0:00:00]} c5 {[%emt 0:00:00]} 3. Nc3 {[%emt 0:00:00]} Nc6 {[%emt 0:00:12]} 4. d4 {[%emt 0:00:01]} cxd4 {[%emt 0:00:02]} 5. Nxd4 {[%emt 0:00:02]} g6 {[%emt 0:00:01]} 6. e4 {[%emt 0:00:02]} Bg7 {[%emt 0:00:02]} 7. Be3 {[%emt 0:00:03]} Ng4 {[%emt 0:00:10]} 8. Qxg4 {[%emt 0:00:26]} Nxd4 {[%emt 0:00:02]} 9. O-O-O {[%emt 0:00:12]} Nc6 {[%emt 0:01:05]} 10. Nd5 {[%emt 0:01:24]} O-O {[%emt 0:01:52]} 11. Qh4 {[%emt 0:00:43]} Qa5 {[%emt 0:00:22]} 12. Kb1 {[%emt 0:02:47]} e6 {[%emt 0:01:18]} 13. Nf6+ {[%emt 0:00:53]} Bxf6 {[%emt 0:00:15]} 14. Qxf6 {[%emt 0:00:03]} Qe5 {[%emt 0:00:18]} 15. Qxe5 {[%emt 0:00:55]} Nxe5 {[%emt 0:00:03]} 16. Be2 {[%emt 0:01:09]} f6 {[%emt 0:00:22]} 17. f4 {[%emt 0:01:08]} Nc6 {[%emt 0:00:48]} 18. h4 {[%emt 0:00:16]} h6 {[%emt 0:03:26]} 19. f5 {[%emt 0:02:58]} exf5 {[%emt 0:01:19]} 20. Bxh6 {[%emt 0:01:20]} Re8 {[%emt 0:00:04]} 21. Rd6 {[%emt 0:01:21]} Kh7 {[%emt 0:02:59]} 22. h5 {[%emt 0:03:25]} Kxh6 {[%emt 0:03:01]} 23. hxg6+ {[%emt 0:00:03]} Kg7 {[%emt 0:00:06]} 24. exf5 {[%emt 0:00:59]} Rxe2 {[%emt 0:03:05]} 25. Rh7+ {[%emt 0:00:05]} Kg8 {[%emt 0:00:02]} 26. Rxf6 {[%emt 0:05:58]} Re7 {[%emt 0:02:03]} 27. Rf8+ {[%emt 0:01:54]} Kxf8 {[%emt 0:00:21]} 28. f6 {[%emt 0:00:01]} Rg7 {[%emt 0:01:14]} 29. Rxg7 {[%emt 0:00:25]} d6 {[%emt 0:00:18]} 30. Rh7 {[%emt 0:00:16]} Be6 {[%emt 0:01:37]} 31. Rh8+ {[%emt 0:00:57]} Bg8 {[%emt 0:00:02]} 32. f7 {[%emt 0:00:07]} Kg7 {[%emt 0:00:03]} 33. fxg8=Q+ {[%emt 0:00:21]} Rxg8 {[%emt 0:00:03]} 34. Rh7+ {[%emt 0:00:02]} Kxg6 {[%emt 0:01:32]} 35. Rxb7 {[%emt 0:00:01]} Rg7 {[%emt 0:00:02]} 36. Rxg7+ {[%emt 0:00:30]} Kxg7 {[%emt 0:00:01]} 37. Kc2 {[%emt 0:00:01]} Kf6 {[%emt 0:00:05]} 38. Kc3 {[%emt 0:00:04]} Ke5 {[%emt 0:01:17]} 39. b4 {[%emt 0:00:04]} Nd8 {[%emt 0:00:07]} 40. a4 {[%emt 0:00:26]} Ne6 {[%emt 0:00:04]} 41. b5 {[%emt 0:00:13]} Nc5 {[%emt 0:00:45]} 42. a5 {[%emt 0:00:03]} Ke4 {[%emt 0:00:02]} 43. Kb4 {[%emt 0:00:19]} Kd4 {[%emt 0:00:15]} 44. b6 {[%emt 0:00:04]} a6 {[%emt 0:00:01]} 45. g4 {[%emt 0:00:09]} Ke5 {[%emt 0:00:40]} 46. Kc3 {[%emt 0:00:01]} Nb7 {[%emt 0:00:02]} 47. Kb4 {[%emt 0:00:27]} Kf4 {[%emt 0:00:42]} 48. Kc3 {[%emt 0:00:05]} Ke5 {[%emt 0:00:31]} 49. Kb4 {[%emt 0:00:02]} Ke4 {[%emt 0:00:06]} 50. g5 {[%emt 0:00:03]} Kf5 {[%emt 0:00:01]} 51. Kc3 {[%emt 0:00:01]} Kxg5 {[%emt 0:00:12]} 52. Kd4 {[%emt 0:00:01]} Kf6 {[%emt 0:00:09]} 53. Kd5 {[%emt 0:00:01]} Ke7 {[%emt 0:00:01]} 54. c5 {[%emt 0:00:30]} dxc5 {[%emt 0:00:17]} 55. Kc6 {[%emt 0:00:06]} Nxa5+ {[%emt 0:00:09]} 56. Kxc5 {[%emt 0:00:03]} Kd7 {[%emt 0:00:06]} 57. b7 {[%emt 0:00:16]} Nxb7+ {[%emt 0:00:02]} 58. Kb6 {[%emt 0:00:21]} a5 {[%emt 0:00:01]} 59. Kb5 {[%emt 0:00:13]} Kc7 {[%emt 0:00:02]} 60. Ka4 {[%emt 0:00:11]} Kb6 {[%emt 0:00:01]} 61. Kb3 {[%emt 0:00:01]} Kb5 {[%emt 0:00:01]} 62. Ka3 {[%emt 0:00:01]} Nc5 {[%emt 0:00:01]} 63. Kb2 {[%emt 0:00:01]} Kb4 {[%emt 0:00:06]} 64. Ka2 {[%emt 0:00:02]} Nd3 {[%emt 0:00:03]} 65. Kb1 {[%emt 0:00:11]} Kb3 {[%emt 0:00:02]} 66. Ka1 {[%emt 0:00:02]} Nb4 {[%emt 0:00:10]} 67. Kb1 {[%emt 0:00:01]} Nc2 {[%emt 0:00:01]} 68. Kc1 {[%emt 0:00:05]} a4 {[%emt 0:00:04]} 69. Kb1 {[%emt 0:00:05]} a3 {[%emt 0:00:02]} 0-1

[Event "World Prestigious University 2019"]
[Site "Tianjin"]
[Date "2019.11.26"]
[Round "2.5"]
[White "Wei, Siyu"]
[Black "Zhong, Wei"]
[Result "1-0"]
[WhiteElo "2106"]
[BlackElo "1804"]
[PlyCount "57"]
[EventDate "2019.11.26"]
[EventType "team-tourn"]
[EventCountry "CHN"]
[TimeControl "1500+10"]
[WhiteClock "0:00:18"]
[BlackClock "0:05:40"]

1. d4 {[%emt 0:00:00]} d5 {[%emt 0:00:00]} 2. Nf3 {[%emt 0:00:00]} Nf6 {[%emt 0:00:10]} 3. Bg5 {[%emt 0:00:00]} e6 {[%emt 0:00:13]} 4. e3 {[%emt 0:00:03]} c6 {[%emt 0:00:46]} 5. Bd3 {[%emt 0:00:25]} Nbd7 {[%emt 0:00:08]} 6. O-O {[%emt 0:00:04]} Be7 {[%emt 0:05:14]} 7. Nbd2 {[%emt 0:00:12]} O-O {[%emt 0:00:09]} 8. c4 {[%emt 0:00:16]} Re8 {[%emt 0:01:51]} 9. Rc1 {[%emt 0:00:17]} a6 {[%emt 0:03:06]} 10. h3 {[%emt 0:01:43]} Nf8 {[%emt 0:03:03]} 11. Qc2 {[%emt 0:05:44]} Ng6 {[%emt 0:01:11]} 12. Ne5 {[%emt 0:00:46]} Nd7 {[%emt 0:02:26]} 13. Bxe7 {[%emt 0:00:10]} Qxe7 {[%emt 0:00:04]} 14. f4 {[%emt 0:00:03]} Ngf8 {[%emt 0:01:23]} 15. e4 {[%emt 0:03:12]} Nf6 {[%emt 0:02:40]} 16. Rce1 {[%emt 0:01:53]} dxe4 {[%emt 0:01:27]} 17. Nxe4 {[%emt 0:00:03]} Nxe4 {[%emt 0:00:07]} 18. Rxe4 {[%emt 0:00:35]} Qd6 {[%emt 0:00:44]} 19. c5 {[%emt 0:00:51]} Qd8 {[%emt 0:00:44]} 20. Qf2 {[%emt 0:02:27]} Nd7 {[%emt 0:00:56]} 21. Bb1 {[%emt 0:00:25]} Nf6 {[%emt 0:00:38]} 22. Re2 {[%emt 0:00:26]} Qd5 {[%emt 0:00:26]} 23. g4 {[%emt 0:01:02]} Rd8 {[%emt 0:00:48]} 24. g5 {[%emt 0:00:13]} Ne8 {[%emt 0:00:12]} 25. Rd1 {[%emt 0:00:28]} f6 {[%emt 0:00:25]} 26. Be4 {[%emt 0:00:37]} Qxa2 {[%emt 0:00:06]} 27. Qh4 {[%emt 0:01:05]} f5 {[%emt 0:00:15]} 28. g6 {[%emt 0:00:41]} Qa4 {[%emt 0:00:10]} 29. gxh7+ {[%emt 0:00:29]} 1-0

[Event "World Prestigious University 2019"]
[Site "Tianjin"]
[Date "2019.11.26"]
[Round "2.6"]
[White "Serbanescu, Diana-Maria"]
[Black "Lu, Hongyi"]
[Result "0-1"]
[WhiteElo "1990"]
[BlackElo "1862"]
[PlyCount "102"]
[EventDate "2019.11.26"]
[EventType "team-tourn"]
[EventCountry "CHN"]
[TimeControl "1500+10"]
[WhiteClock "0:00:39"]
[BlackClock "0:00:35"]

1. e4 {[%emt 0:00:00]} e6 {[%emt 0:00:00]} 2. d4 {[%emt 0:00:11]} d5 {[%emt 0:00:00]} 3. Nc3 {[%emt 0:00:28]} Nf6 {[%emt 0:00:56]} 4. e5 {[%emt 0:00:02]} Nfd7 {[%emt 0:00:02]} 5. f4 {[%emt 0:00:01]} c5 {[%emt 0:00:02]} 6. Nf3 {[%emt 0:00:06]} Nc6 {[%emt 0:00:03]} 7. Be3 {[%emt 0:00:05]} a6 {[%emt 0:01:35]} 8. Qd2 {[%emt 0:00:14]} b5 {[%emt 0:00:14]} 9. Be2 {[%emt 0:00:56]} Qb6 {[%emt 0:03:13]} 10. O-O {[%emt 0:03:28]} cxd4 {[%emt 0:01:47]} 11. Nxd4 {[%emt 0:00:21]} Bc5 {[%emt 0:00:21]} 12. Rad1 {[%emt 0:00:14]} O-O {[%emt 0:00:12]} 13. Bf3 {[%emt 0:03:15]} Nxd4 {[%emt 0:03:34]} 14. Bxd4 {[%emt 0:00:03]} Bb7 {[%emt 0:01:17]} 15. Ne2 {[%emt 0:00:43]} Rac8 {[%emt 0:00:23]} 16. Kh1 {[%emt 0:02:37]} b4 {[%emt 0:00:15]} 17. Bxc5 {[%emt 0:05:23]} Qxc5 {[%emt 0:00:14]} 18. Nd4 {[%emt 0:00:02]} a5 {[%emt 0:01:48]} 19. Be2 {[%emt 0:01:58]} Rfe8 {[%emt 0:03:33]} 20. Bg4 {[%emt 0:00:53]} g6 {[%emt 0:00:23]} 21. Rfe1 {[%emt 0:00:15]} Qb6 {[%emt 0:01:07]} 22. Bf3 {[%emt 0:00:50]} Nc5 {[%emt 0:00:43]} 23. b3 {[%emt 0:00:41]} Ne4 {[%emt 0:00:30]} 24. Bxe4 {[%emt 0:00:11]} dxe4 {[%emt 0:00:03]} 25. h3 {[%emt 0:03:17]} Rc3 {[%emt 0:00:50]} 26. Re3 {[%emt 0:00:06]} Rc7 {[%emt 0:01:28]} 27. Qf2 {[%emt 0:01:26]} Rd8 {[%emt 0:01:06]} 28. Re2 {[%emt 0:00:01]} Rc3 {[%emt 0:00:26]} 29. Kh2 {[%emt 0:00:12]} Rdc8 {[%emt 0:02:33]} 30. Re3 {[%emt 0:00:18]} Rxe3 {[%emt 0:00:32]} 31. Qxe3 {[%emt 0:00:01]} Rc3 {[%emt 0:00:05]} 32. Qe2 {[%emt 0:00:14]} Rc5 {[%emt 0:00:23]} 33. Qe3 {[%emt 0:00:44]} Bd5 {[%emt 0:00:14]} 34. Ne2 {[%emt 0:00:40]} Qc7 {[%emt 0:00:05]} 35. Nd4 {[%emt 0:00:12]} Qb6 {[%emt 0:00:15]} 36. Ne2 {[%emt 0:00:21]} Qc7 {[%emt 0:00:02]} 37. Nd4 {[%emt 0:00:08]} Qb6 {[%emt 0:00:10]} 38. Rd2 {[%emt 0:00:01]} Rc3 {[%emt 0:00:31]} 39. Qe1 {[%emt 0:00:01]} e3 {[%emt 0:00:11]} 40. Rd1 {[%emt 0:00:01]} Qb7 {[%emt 0:00:15]} 41. Qe2 {[%emt 0:00:08]} Be4 {[%emt 0:00:12]} 42. Ra1 {[%emt 0:00:54]} Qb6 {[%emt 0:00:10]} 43. Rd1 {[%emt 0:00:05]} Qc5 {[%emt 0:00:06]} 44. Nf3 {[%emt 0:00:17]} Rxc2 {[%emt 0:00:12]} 45. Rd8+ {[%emt 0:00:02]} Kg7 {[%emt 0:00:02]} 46. Qf1 {[%emt 0:00:09]} Bxf3 {[%emt 0:00:11]} 47. Qxf3 {[%emt 0:00:02]} e2 {[%emt 0:00:03]} 48. Qe4 {[%emt 0:00:10]} Qc3 {[%emt 0:00:16]} 49. Rg8+ {[%emt 0:00:24]} Kxg8 {[%emt 0:00:09]} 50. Qa8+ {[%emt 0:00:01]} Kg7 {[%emt 0:00:02]} 51. Qd8 {[%emt 0:00:03]} Qc8 {[%emt 0:00:07]} 0-1

[Event "World Prestigious University 2019"]
[Site "Tianjin"]
[Date "2019.11.26"]
[Round "2.7"]
[White "Wang, Yue"]
[Black "Isakov, Michael"]
[Result "1/2-1/2"]
[WhiteElo "2674"]
[BlackElo "2162"]
[PlyCount "82"]
[EventDate "2019.11.26"]
[EventType "team-tourn"]
[EventCountry "CHN"]
[TimeControl "1500+10"]
[WhiteClock "0:02:41"]
[BlackClock "0:02:38"]

1. Nf3 {[%emt 0:00:00]} d5 {[%emt 0:00:00]} 2. g3 {[%emt 0:00:04]} Nf6 {[%emt 0:00:00]} 3. Bg2 {[%emt 0:00:02]} e6 {[%emt 0:00:00]} 4. c4 {[%emt 0:00:21]} Be7 {[%emt 0:00:00]} 5. d4 {[%emt 0:00:06]} O-O {[%emt 0:00:00]} 6. Nc3 {[%emt 0:01:39]} b6 {[%emt 0:01:28]} 7. O-O {[%emt 0:00:11]} Bb7 {[%emt 0:01:27]} 8. cxd5 {[%emt 0:00:34]} exd5 {[%emt 0:00:02]} 9. Ne5 {[%emt 0:00:15]} Nbd7 {[%emt 0:00:44]} 10. Qa4 {[%emt 0:00:09]} a6 {[%emt 0:04:13]} 11. Nxd7 {[%emt 0:01:39]} Nxd7 {[%emt 0:00:02]} 12. Nxd5 {[%emt 0:00:10]} Bd6 {[%emt 0:01:22]} 13. Rd1 {[%emt 0:01:46]} Re8 {[%emt 0:02:51]} 14. Qc2 {[%emt 0:00:22]} Rb8 {[%emt 0:00:50]} 15. Nc3 {[%emt 0:00:17]} Bxg2 {[%emt 0:03:42]} 16. Kxg2 {[%emt 0:00:04]} b5 {[%emt 0:00:21]} 17. e4 {[%emt 0:00:19]} Nb6 {[%emt 0:00:27]} 18. f3 {[%emt 0:01:15]} Qc8 {[%emt 0:01:03]} 19. Be3 {[%emt 0:00:23]} Nc4 {[%emt 0:00:28]} 20. Bf2 {[%emt 0:00:07]} Re6 {[%emt 0:01:23]} 21. b3 {[%emt 0:01:40]} Rh6 {[%emt 0:00:34]} 22. h4 {[%emt 0:00:05]} Bxg3 {[%emt 0:02:15]} 23. Kxg3 {[%emt 0:02:56]} Rbb6 {[%emt 0:01:45]} 24. bxc4 {[%emt 0:01:17]} Rxh4 {[%emt 0:00:59]} 25. Kxh4 {[%emt 0:05:47]} Rh6+ {[%emt 0:00:42]} 26. Kg3 {[%emt 0:00:07]} Qh3+ {[%emt 0:00:39]} 27. Kf4 {[%emt 0:00:01]} Rf6+ {[%emt 0:00:13]} 28. Ke3 {[%emt 0:00:03]} Rxf3+ {[%emt 0:00:18]} 29. Kd2 {[%emt 0:00:28]} Qh6+ {[%emt 0:00:01]} 30. Ke2 {[%emt 0:01:26]} Rxf2+ {[%emt 0:00:02]} 31. Kxf2 {[%emt 0:00:03]} Qh2+ {[%emt 0:00:02]} 32. Kf3 {[%emt 0:00:48]} Qh3+ {[%emt 0:00:18]} 33. Ke2 {[%emt 0:00:42]} Qh2+ {[%emt 0:00:10]} 34. Kd3 {[%emt 0:00:06]} Qh3+ {[%emt 0:00:06]} 35. Kd2 {[%emt 0:00:53]} Qh6+ {[%emt 0:00:02]} 36. Ke2 {[%emt 0:01:19]} Qh2+ {[%emt 0:00:05]} 37. Kf3 {[%emt 0:01:01]} Qh3+ {[%emt 0:00:08]} 38. Kf4 {[%emt 0:00:23]} Qh4+ {[%emt 0:00:08]} 39. Ke3 {[%emt 0:00:12]} Qh3+ {[%emt 0:00:06]} 40. Ke2 {[%emt 0:00:07]} Qh2+ {[%emt 0:00:09]} 41. Kd3 {[%emt 0:00:05]} Qh3+ {[%emt 0:00:04]} 1/2-1/2

[Event "World Prestigious University 2019"]
[Site "Tianjin"]
[Date "2019.11.26"]
[Round "2.8"]
[White "Lu, Andrew H"]
[Black "Li, Yankai"]
[Result "1/2-1/2"]
[WhiteElo "2071"]
[BlackElo "2432"]
[PlyCount "64"]
[EventDate "2019.11.26"]
[EventType "team-tourn"]
[EventCountry "CHN"]
[TimeControl "1500+10"]
[WhiteClock "0:03:33"]
[BlackClock "0:09:14"]

1. d4 {[%emt 0:00:00]} Nf6 {[%emt 0:00:00]} 2. Nf3 {[%emt 0:00:00]} d5 {[%emt 0:00:00]} 3. c4 {[%emt 0:00:07]} e6 {[%emt 0:00:00]} 4. Nc3 {[%emt 0:00:01]} Be7 {[%emt 0:00:05]} 5. e3 {[%emt 0:00:18]} O-O {[%emt 0:00:02]} 6. Bd3 {[%emt 0:00:12]} dxc4 {[%emt 0:00:02]} 7. Bxc4 {[%emt 0:00:00]} c5 {[%emt 0:00:26]} 8. O-O {[%emt 0:00:07]} cxd4 {[%emt 0:00:06]} 9. Nxd4 {[%emt 0:00:08]} e5 {[%emt 0:00:07]} 10. Nf3 {[%emt 0:00:34]} Nc6 {[%emt 0:00:02]} 11. Qc2 {[%emt 0:00:56]} h6 {[%emt 0:04:33]} 12. h3 {[%emt 0:01:13]} Bd7 {[%emt 0:00:18]} 13. Rd1 {[%emt 0:00:35]} Rc8 {[%emt 0:00:04]} 14. Qe2 {[%emt 0:00:27]} Qc7 {[%emt 0:01:32]} 15. b3 {[%emt 0:02:00]} e4 {[%emt 0:02:32]} 16. Nd4 {[%emt 0:02:53]} Nxd4 {[%emt 0:00:13]} 17. Rxd4 {[%emt 0:00:31]} Bc5 {[%emt 0:00:25]} 18. Rd1 {[%emt 0:00:28]} Bc6 {[%emt 0:01:23]} 19. Bb2 {[%emt 0:00:21]} Rfd8 {[%emt 0:00:23]} 20. Rac1 {[%emt 0:01:20]} Qe7 {[%emt 0:00:14]} 21. Bb5 {[%emt 0:00:59]} Rxd1+ {[%emt 0:03:07]} 22. Rxd1 {[%emt 0:00:24]} Ba3 {[%emt 0:02:33]} 23. Bxc6 {[%emt 0:02:21]} Rxc6 {[%emt 0:00:43]} 24. Nd5 {[%emt 0:02:37]} Nxd5 {[%emt 0:00:09]} 25. Rxd5 {[%emt 0:00:08]} Bxb2 {[%emt 0:00:07]} 26. Qxb2 {[%emt 0:00:02]} Qc7 {[%emt 0:02:39]} 27. Qe5 {[%emt 0:01:52]} Rc1+ {[%emt 0:00:20]} 28. Kh2 {[%emt 0:00:01]} Qxe5+ {[%emt 0:00:02]} 29. Rxe5 {[%emt 0:00:00]} Rc2 {[%emt 0:00:02]} 30. Re8+ {[%emt 0:00:29]} Kh7 {[%emt 0:00:01]} 31. Re7 {[%emt 0:00:01]} Rxf2 {[%emt 0:03:19]} 32. Rxb7 {[%emt 0:00:01]} Rxa2 {[%emt 0:01:18]} 1/2-1/2

[Event "World Prestigious University 2019"]
[Site "Tianjin"]
[Date "2019.11.26"]
[Round "2.9"]
[White "Xiao, Yiyi"]
[Black "Papanek, Ella"]
[Result "1-0"]
[WhiteElo "2306"]
[BlackElo "1777"]
[PlyCount "64"]
[EventDate "2019.11.26"]
[EventType "team-tourn"]
[EventCountry "CHN"]
[TimeControl "1500+10"]
[WhiteClock "0:00:11"]
[BlackClock "0:06:20"]

1. d4 {[%emt 0:00:00]} d5 {[%emt 0:00:00]} 2. c4 {[%emt 0:00:00]} c6 {[%emt 0:00:00]} 3. Nc3 {[%emt 0:00:00]} Nf6 {[%emt 0:00:00]} 4. e3 {[%emt 0:00:00]} e6 {[%emt 0:00:00]} 5. Nf3 {[%emt 0:00:00]} Nbd7 {[%emt 0:00:00]} 6. Qc2 {[%emt 0:00:02]} Bd6 {[%emt 0:00:00]} 7. Be2 {[%emt 0:00:02]} dxc4 {[%emt 0:00:08]} 8. Bxc4 {[%emt 0:00:03]} b5 {[%emt 0:00:04]} 9. Be2 {[%emt 0:00:02]} Bb7 {[%emt 0:00:08]} 10. O-O {[%emt 0:00:13]} a6 {[%emt 0:00:03]} 11. e4 {[%emt 0:04:35]} e5 {[%emt 0:00:50]} 12. Rd1 {[%emt 0:01:51]} Qc7 {[%emt 0:01:02]} 13. Bg5 {[%emt 0:05:24]} Ng4 {[%emt 0:03:23]} 14. h3 {[%emt 0:01:20]} h6 {[%emt 0:02:29]} 15. Bh4 {[%emt 0:00:28]} exd4 {[%emt 0:07:04]} 16. Nxd4 {[%emt 0:02:29]} Bh2+ {[%emt 0:05:02]} 17. Kf1 {[%emt 0:00:55]} Nge5 {[%emt 0:01:42]} 18. Nf5 {[%emt 0:01:18]} Ng6 {[%emt 0:03:23]} 19. Nxg7+ {[%emt 0:01:33]} Kf8 {[%emt 0:00:01]} 20. Nf5 {[%emt 0:00:03]} Nxh4 {[%emt 0:01:40]} 21. Nxh4 {[%emt 0:00:04]} c5 {[%emt 0:00:58]} 22. Nd5 {[%emt 0:00:20]} Qe5 {[%emt 0:00:14]} 23. Nf3 {[%emt 0:00:10]} Qg7 {[%emt 0:00:23]} 24. Nxh2 {[%emt 0:00:10]} Rg8 {[%emt 0:00:01]} 25. Ng4 {[%emt 0:00:33]} h5 {[%emt 0:00:05]} 26. Nge3 {[%emt 0:00:03]} c4 {[%emt 0:00:05]} 27. b3 {[%emt 0:00:31]} Ne5 {[%emt 0:00:13]} 28. bxc4 {[%emt 0:00:11]} bxc4 {[%emt 0:00:17]} 29. Qb2 {[%emt 0:00:19]} Bxd5 {[%emt 0:00:21]} 30. Rxd5 {[%emt 0:00:22]} f6 {[%emt 0:00:11]} 31. Rad1 {[%emt 0:00:44]} Re8 {[%emt 0:00:12]} 32. Bxh5 {[%emt 0:00:15]} Re7 {[%emt 0:00:12]} 1-0